bitfinex/quotes_ETHUSD_20251019
["timestamp","ask_amount","ask_price","bid_price","bid_amount"]
[1760884012295,2.113487,3995.4,3995.3,0.1248]
[1760884012590,2.113487,3995.6,3995.3,0.1248]
[1760884012884,2.113487,3995.4,3995.3,0.1248]
[1760884013085,2.113487,3995.4,3995.1,0.1248]
[1760884013286,2.113487,3995.2,3995.1,0.1248]
[1760884013603,2.113487,3995.2,3994.7,0.002]
[1760884013783,2.113487,3995.0,3994.7,0.002]
[1760884014090,2.113487,3994.8,3994.7,0.002]
[1760884014472,11.47404123,3994.8,3994.7,0.002]
[1760884014662,9.36698423,3994.8,3994.7,0.002]
[1760884014865,8.58582923,3994.8,3994.7,0.002]
[1760884015886,5.70524123,3994.8,3994.7,0.002]
[1760884016202,5.25034123,3994.8,3994.7,0.002]
[1760884016503,5.70524123,3994.8,3994.7,0.002]
[1760884016693,5.25034123,3994.8,3994.7,0.002]
[1760884017704,7.27874523,3994.8,3994.7,0.002]
[1760884017914,12.21158623,3994.8,3994.7,0.002]
[1760884018120,9.85702423,3994.8,3994.7,0.002]
[1760884018701,8.84155623,3994.8,3994.7,0.002]
[1760884018898,10.94544923,3994.8,3994.7,0.002]
[1760884020010,5.25034123,3994.8,3994.7,0.002]
[1760884020320,2.65202912,3994.8,3994.7,0.002]
[1760884020522,11.33260965,3994.8,3994.7,0.002]
[1760884020818,6.97834123,3994.8,3994.7,0.002]
[1760884021029,4.475087,3994.8,3994.7,0.002]
[1760884021314,2.113487,3994.8,3994.7,0.002]
[1760884021629,6.34474123,3994.8,3994.7,0.002]
[1760884022603,3.841487,3994.8,3994.7,0.002]
[1760884022806,6.34474123,3994.8,3994.7,0.002]
[1760884022989,3.841487,3994.8,3994.7,0.002]
[1760884023334,4.61648195,3995.3,3994.7,0.3284]
[1760884023533,0.53925,3995.2,3994.7,0.3284]
[1760884023726,2.13132434,3995.1,3994.8,0.3264]
[1760884023930,2.113487,3995.0,3994.9,0.3264]
[1760884024112,2.113487,3995.3,3994.9,0.3264]
[1760884024299,2.113487,3995.1,3994.9,0.3264]
[1760884024512,2.113487,3994.9,3994.8,2.50325423]
[1760884024718,2.113487,3995.3,3994.7,2.50530836]
[1760884024936,0.001,3995.4,3994.7,0.002]
[1760884024937,2.113487,3995.1,3994.7,0.002]
[1760884025249,2.113487,3995.3,3994.8,0.3264]
[1760884025404,2.113487,3995.3,3995.2,0.1248]
[1760884025606,0.02867117,3994.7,3994.6,0.002]
[1760884025908,4.64547506,3994.7,3994.6,0.002]
[1760884026102,2.14215817,3994.7,3994.6,0.002]
[1760884026831,4.6633124,3994.7,3994.6,0.002]
[1760884027056,4.6633124,3994.7,3994.2,2.63]
[1760884027236,2.113487,3994.6,3994.2,2.63]
[1760884027443,2.50357823,3994.3,3993.3,2.50419452]
[1760884027737,2.113487,3994.1,3993.5,2.672]
[1760884027927,2.113487,3993.9,3993.6,0.1248]
[1760884028248,2.113487,3994.1,3993.6,0.1248]
[1760884028403,2.113487,3994.2,3993.6,0.1248]
[1760884028712,2.113487,3994.0,3993.6,0.1248]
[1760884028913,2.113487,3993.8,3993.6,0.1248]
[1760884029112,2.113487,3993.9,3993.3,2.672]
[1760884029318,2.113487,3993.7,3993.3,2.672]
[1760884029515,0.66227117,3994.7,3993.3,2.672]
[1760884029516,2.113487,3994.2,3993.7,0.1248]
[1760884029717,2.113487,3994.0,3993.7,0.1248]
[1760884029923,2.113487,3993.8,3993.7,0.1248]
[1760884030131,2.113487,3994.1,3993.7,0.1248]
[1760884030328,2.113487,3993.9,3993.7,0.1248]
[1760884030509,2.13132434,3993.8,3993.7,0.1248]
[1760884032529,0.1248,3994.0,3993.6,2.672]
[1760884032735,2.113487,3993.9,3993.6,2.672]
[1760884033050,2.113487,3993.9,3993.7,2.672]
[1760884033259,2.238287,3994.3,3993.7,2.672]
[1760884033420,2.113487,3994.2,3993.7,2.672]
[1760884033621,2.113487,3994.2,3994.1,0.0708]
[1760884034118,2.113487,3994.2,3993.7,2.672]
[1760884034332,2.113487,3994.2,3994.1,0.0708]
[1760884034650,2.113487,3994.6,3994.1,0.0708]
[1760884035650,2.113487,3994.6,3994.4,0.1248]
[1760884035846,2.113487,3994.5,3994.4,0.1248]
[1760884036050,2.113487,3994.6,3994.4,2.7968]
[1760884036628,2.113487,3994.6,3994.5,2.672]
[1760884037033,2.113487,3994.6,3994.5,2.9984]
[1760884038117,2.113487,3994.6,3994.5,2.672]
[1760884042730,2.113487,3994.6,3994.4,0.1248]
[1760884042931,2.13132434,3994.5,3994.4,0.1248]
[1760884043180,4.63476657,3994.5,3994.4,0.1248]
[1760884043339,2.113487,3994.2,3994.0,0.243]
[1760884043540,2.113487,3994.1,3994.0,0.243]
[1760884044262,2.113487,3994.1,3994.0,0.557513]
[1760884044263,2.50369294,3994.1,3994.0,0.557513]
[1760884044432,2.50385131,3993.9,3993.6,2.671]
[1760884044632,0.01783734,3993.8,3993.6,2.671]
[1760884045429,0.01783734,3993.8,3993.2,0.1308]
[1760884045633,0.01783734,3993.8,3993.3,2.671]
[1760884046173,2.52166367,3993.9,3993.3,2.671]
[1760884046368,2.5037594,3994.0,3993.3,2.671]
[1760884047372,2.50369099,3994.2,3993.3,2.671]
[1760884047574,2.50363026,3994.2,3993.3,2.671]
[1760884047984,2.50373022,3994.1,3993.3,5.17516999]
[1760884048207,0.2155,3994.3,3993.4,2.50413181]
[1760884048510,0.01783734,3994.2,3993.3,2.671]
[1760884048806,2.50386844,3993.9,3993.1,0.002]
[1760884048982,2.50386844,3993.9,3993.1,0.1328]
[1760884049314,2.50363026,3994.2,3993.3,2.5041361]
[1760884049478,2.50363026,3994.2,3993.4,2.50411181]
[1760884049811,0.01783734,3994.2,3993.6,2.50394547]
[1760884049975,0.01783734,3994.2,3993.5,5.17505646]
[1760884050887,2.52147587,3994.2,3993.5,2.671]
[1760884051083,0.49023734,3994.2,3993.5,2.671]
[1760884051491,2.99386913,3994.2,3993.5,2.671]
[1760884051693,2.99386913,3994.2,3993.5,5.1750565]
[1760884051694,0.49023734,3994.2,3993.5,5.1750565]
[1760884051890,0.01783734,3994.2,3994.1,2.50369294]
[1760884052091,0.02867117,3994.7,3994.6,2.50337956]
[1760884052411,0.02867117,3994.7,3994.6,6.90237956]
[1760884052912,0.02867117,3994.7,3994.6,4.23137956]
[1760884053113,0.02867117,3994.7,3994.6,7.25381335]
[1760884053318,0.02867117,3994.7,3994.6,7.35357956]
[1760884057493,0.02867117,3994.7,3994.6,4.68257956]
[1760884057688,0.02867117,3994.7,3994.6,4.35617956]
[1760884057889,0.02867117,3994.7,3994.6,6.90137956]
[1760884058318,0.02867117,3994.7,3994.6,4.23137956]
[1760884058532,0.02867117,3994.7,3994.6,6.90137956]
[1760884058934,0.02867117,3994.7,3994.6,7.22777956]
[1760884059140,0.001,3995.0,3994.9,4.23119156]
[1760884059513,0.001,3995.0,3994.9,4.55759156]
[1760884059706,0.001,3995.0,3994.9,4.58262347]
[1760884060245,0.001,3995.0,3994.9,5.21622347]
[1760884060542,0.001,3995.0,3994.9,5.19119156]
[1760884061443,0.001,3995.0,3994.9,5.14119156]
[1760884063135,0.001,3995.0,3994.9,8.93719156]
[1760884063348,0.001,3995.0,3994.9,5.14119156]
[1760884063552,0.001,3995.0,3994.9,7.81019156]
[1760884064272,0.001,3995.0,3994.9,7.17659156]
[1760884064471,0.001,3995.0,3994.9,7.81019156]
[1760884066144,0.001,3995.8,3994.9,7.81019156]
[1760884066145,1e-08,3995.8,3995.7,2.50269039]
[1760884066360,1e-08,3995.8,3995.7,7.53329039]
[1760884066543,1e-08,3995.8,3995.7,6.89869039]
[1760884067331,1e-08,3995.8,3995.7,4.23069039]
[1760884067532,1e-08,3995.8,3995.7,6.89869039]
[1760884068056,0.46230001,3995.8,3995.7,7.02349039]
[1760884069066,0.46230001,3995.8,3995.7,4.35549039]
[1760884069286,1e-08,3995.8,3995.7,7.02349039]
[1760884072416,0.46230001,3995.8,3995.7,4.35549039]
[1760884072584,0.46230001,3995.8,3995.7,7.02349039]
[1760884072783,0.46230001,3995.8,3995.7,2.7918]
[1760884073307,0.46230001,3995.8,3995.7,2.667]
[1760884073508,0.46230001,3995.8,3995.7,5.16969039]
[1760884074074,0.46230001,3995.8,3995.3,2.50288946]
[1760884074298,0.4623,3995.7,3995.2,2.50294653]
[1760884074478,0.4623,3995.6,3995.3,2.667]
[1760884074800,0.4623,3995.5,3995.3,2.667]
[1760884075120,0.4623,3995.4,3995.3,5.16994095]
[1760884075297,0.4623,3995.4,3995.3,2.667]
[1760884076418,0.4623,3995.4,3994.3,2.5035073]
[1760884076572,0.4623,3995.4,3994.0,0.002]
[1760884076573,0.70283734,3995.3,3994.0,0.002]
[1760884076773,0.70283734,3995.3,3994.2,1.728]
[1760884077082,0.4623,3995.2,3994.3,1.728]
[1760884077281,0.01783734,3995.1,3994.5,2.50342949]
[1760884077588,0.48013734,3995.1,3994.6,5.17037885]
[1760884077793,0.4623,3995.0,3994.6,2.667]
[1760884077981,0.48013734,3994.9,3994.0,0.002]
[1760884078310,2.98334225,3994.9,3994.1,2.667]
[1760884078514,2.50351877,3994.4,3994.1,2.667]
[1760884078825,0.48013734,3994.3,3994.1,2.667]
[1760884078975,2.96593026,3994.2,3994.1,2.667]
[1760884079491,2.96593026,3994.2,3994.0,0.002]
[1760884079692,0.01783734,3994.1,3994.0,0.002]
[1760884080191,0.48013734,3994.1,3994.0,0.002]
[1760884080396,31.32715928,3994.1,3994.0,0.002]
[1760884080574,17.93925094,3994.1,3994.0,0.002]
[1760884080773,10.48173694,3994.1,3994.0,0.002]
[1760884080974,5.32759294,3994.1,3994.0,0.002]
[1760884081192,4.69399294,3994.1,3994.0,0.002]
[1760884081392,4.71183028,3994.1,3994.0,0.002]
[1760884081792,5.34543028,3994.1,3994.0,0.002]
[1760884081994,7.54344694,3994.1,3994.0,0.002]
[1760884082510,7.32813694,3994.1,3994.0,0.002]
[1760884084645,5.32759294,3994.1,3994.0,0.002]
[1760884085739,2.96599294,3994.1,3994.0,0.002]
[1760884086036,2.98383028,3994.1,3994.0,0.002]
[1760884086236,2.98383028,3994.1,3992.8,2.241]
[1760884086237,2.5046963,3992.5,3992.4,1e-08]
[1760884086448,4.86635904,3992.4,3992.3,1e-08]
[1760884086649,5.33485904,3992.4,3992.3,1e-08]
[1760884087919,4.70125904,3992.4,3992.3,1e-08]
[1760884088145,4.71909638,3992.4,3992.3,1e-08]
[1760884088566,2.99109638,3992.4,3992.3,1e-08]
[1760884088710,13.91354638,3992.4,3992.3,1e-08]
[1760884088913,13.89570904,3992.4,3992.3,1e-08]
[1760884089245,11.45617304,3992.4,3992.3,1e-08]
[1760884090120,27.62449504,3992.4,3992.3,1e-08]
[1760884090624,3.13873552,3991.8,3991.5,0.002]
[1760884090822,13.84559086,3991.8,3991.5,0.002]
[1760884091043,13.49120552,3991.8,3991.5,0.002]
[1760884091647,7.97133552,3991.8,3991.5,0.002]
[1760884092049,0.2142,3991.9,3991.5,0.002]
[1760884092050,1.82842769,3992.2,3991.5,0.002]
[1760884092224,2.50513552,3991.8,3991.5,0.002]
[1760884092419,2.5050147,3992.0,3991.5,0.002]
[1760884093030,0.01783734,3991.9,3991.5,0.002]
[1760884093231,2.74014637,3992.6,3991.5,0.002]
[1760884093232,2.50490794,3992.2,3991.5,0.002]
[1760884093432,0.01783734,3992.1,3991.5,0.002]
[1760884093732,0.01783734,3992.1,3991.5,2.50731753]
[1760884093932,0.2355,3992.6,3991.7,0.3324]
[1760884094149,0.4366,3992.9,3991.7,0.3324]
[1760884094354,0.01783734,3992.8,3991.7,2.83755833]
[1760884094650,2.52235869,3992.8,3991.7,0.3324]
[1760884094857,2.50471041,3992.5,3991.7,0.3324]
[1760884095055,0.4366,3993.0,3991.7,0.002]
[1760884095364,3.35293552,3991.8,3991.7,0.002]
[1760884095527,5.09877286,3991.8,3991.7,0.002]
[1760884095844,5.53537286,3991.8,3991.7,0.002]
[1760884096045,5.51753552,3991.8,3991.7,0.002]
[1760884096444,5.08093552,3991.8,3991.7,0.002]
[1760884096758,4.44733552,3991.8,3991.7,0.002]
[1760884097062,1.728,3991.8,3991.7,0.002]
[1760884097555,0.1248,3991.9,3991.7,0.002]
[1760884097733,2.52297286,3991.8,3991.7,0.002]
[1760884097940,2.95957286,3991.8,3991.7,0.002]
[1760884100176,2.52297286,3991.8,3991.7,0.002]
[1760884100671,0.01783734,3991.8,3991.7,0.002]
[1760884100844,2.52297286,3991.8,3991.7,0.002]
[1760884101546,2.50505212,3992.0,3991.7,0.002]
[1760884101747,2.50513552,3991.8,3991.7,0.002]
[1760884103643,2.52297286,3991.8,3991.7,0.002]
[1760884103845,0.2142,3992.1,3991.7,0.002]
[1760884104075,0.4366,3992.8,3991.7,0.002]
[1760884104678,0.146597,3991.7,3991.5,0.002]
[1760884104976,0.146597,3991.7,3991.5,3.82229974]
[1760884105170,0.146597,3991.7,3991.5,4.15269974]
[1760884105775,0.146597,3991.7,3991.5,6.65802152]
[1760884106189,0.146597,3991.7,3991.6,0.3304]
[1760884106488,0.146597,3991.7,3991.6,2.83566104]
[1760884107079,0.146597,3991.7,3991.6,2.83766104]
[1760884107760,0.146597,3991.7,3991.6,2.50726104]
[1760884108379,0.146597,3991.7,3991.6,2.63206104]
[1760884109255,0.146597,3991.7,3991.6,3.84735235]
[1760884109454,0.001,3992.1,3991.6,4.15269974]
[1760884109651,0.001,3992.1,3991.7,0.3304]
[1760884110051,0.001,3992.1,3992.0,2.50501002]
[1760884110280,0.001,3992.1,3992.0,6.32530976]
[1760884110486,0.001,3992.1,3992.0,6.65570976]
[1760884111091,0.001,3992.1,3992.0,9.32270976]
[1760884111696,0.001,3992.1,3992.0,11.05070976]
[1760884114099,0.001,3992.1,3992.0,7.23041002]
[1760884115186,0.001,3992.1,3992.0,7.22941002]
[1760884117285,0.001,3992.1,3992.0,7.86301002]
[1760884119306,0.001,3992.1,3992.0,7.98781002]
[1760884119605,0.001,3992.1,3992.0,11.80810976]
[1760884119910,0.001,3992.1,3992.0,8.50850976]
[1760884120086,0.001,3992.1,3992.0,11.17350976]
[1760884123924,0.001,3992.1,3992.0,7.35321002]
[1760884124119,0.001,3992.1,3992.0,7.98681002]
[1760884124524,0.001,3992.1,3992.0,11.80710976]
[1760884124841,0.001,3992.1,3992.0,11.68230976]
[1760884125226,0.001,3992.1,3992.0,14.31730976]
[1760884128227,0.001,3992.1,3992.0,9.26810976]
[1760884128430,0.001,3992.1,3992.0,11.93210976]
[1760884129737,0.001,3992.1,3992.0,21.00710976]
[1760884130231,0.4652,3993.9,3993.8,2.50388101]
[1760884130431,0.2142,3994.0,3993.8,5.16688101]
[1760884130603,0.2142,3994.0,3993.9,2.50381832]
[1760884131036,0.6794,3994.0,3993.9,2.50381832]
[1760884132034,0.2142,3994.0,3993.9,2.50381832]
[1760884132415,0.6794,3994.0,3993.9,2.50381832]
[1760884132611,0.7007,3994.4,3994.3,2.50356758]
[1760884132934,0.7007,3994.4,3994.3,5.16656758]
[1760884134609,0.7007,3994.4,3994.3,5.29136758]
[1760884137913,0.7007,3994.4,3994.3,0.1248]
[1760884138116,0.7007,3994.4,3994.3,2.7868]
[1760884138527,0.7007,3994.4,3994.3,5.29036758]
[1760884139435,0.2313,3994.8,3994.7,2.50331689]
[1760884139642,0.2313,3994.8,3994.7,5.16531689]
[1760884139846,0.6965,3994.8,3994.7,2.7868]
[1760884140313,0.2313,3994.8,3994.7,5.29011689]
[1760884140559,0.6965,3994.8,3994.7,5.29011689]
[1760884141351,0.6965,3994.8,3994.7,2.7868]
[1760884141557,0.6965,3994.8,3994.7,2.661]
[1760884141713,0.2142,3995.1,3994.7,2.661]
[1760884141912,0.4652,3995.0,3994.7,5.1643007]
[1760884142150,0.001,3994.8,3994.7,5.1643007]
[1760884143422,0.4662,3994.8,3994.7,5.16431689]
[1760884143644,0.4662,3994.8,3993.7,2.50394371]
[1760884143965,0.4662,3994.8,3993.2,4.70469974]
[1760884143966,0.4662,3994.8,3994.6,2.50332924]
[1760884144166,0.001,3994.8,3994.7,5.16331689]
[1760884144347,0.4652,3994.7,3993.0,0.1308]
[1760884144547,0.4652,3994.7,3993.2,1.728]
[1760884144861,0.001,3994.8,3994.5,2.50340649]
[1760884145170,0.001,3994.8,3994.6,5.16337915]
[1760884145479,0.001,3994.8,3994.7,2.50331689]
[1760884145666,0.001,3994.8,3994.6,2.66]
[1760884145667,0.001,3994.8,3994.6,5.16337236]
[1760884145973,0.4644,3994.8,3994.6,2.66]
[1760884146140,0.4644,3994.8,3994.7,2.50331689]
[1760884147040,0.4644,3994.8,3994.6,5.16337509]
[1760884147383,0.4644,3994.8,3994.7,2.50331689]
[1760884147791,7.03030066,3993.0,3992.5,0.002]
[1760884147995,4.23238266,3993.0,3992.5,0.002]
[1760884148292,4.69578266,3993.0,3992.5,0.002]
[1760884148590,2.96778266,3993.0,3992.6,0.019]
[1760884148887,2.98562,3993.0,3992.5,0.002]
[1760884149366,2.96778266,3993.0,3992.5,0.002]
[1760884150575,0.4468,3993.5,3992.5,0.002]
[1760884150744,0.4468,3993.5,3993.0,2.66]
[1760884150951,0.4468,3993.4,3993.0,2.66]
[1760884151568,0.4468,3993.4,3993.3,0.1248]
[1760884152286,0.2337,3993.6,3993.3,0.1248]
[1760884152593,0.4468,3993.5,3993.3,0.1248]
[1760884152884,0.2337,3993.6,3993.3,0.1248]
[1760884152885,0.4468,3993.4,3993.3,0.1248]
[1760884155070,0.2337,3993.6,3993.3,0.1248]
[1760884155601,0.4468,3993.5,3993.3,0.1248]
[1760884157391,0.4468,3993.5,3992.5,2.50668213]
[1760884157392,0.001,3994.8,3993.4,2.7878]
[1760884157558,0.001,3994.8,3993.5,0.3304]
[1760884157760,0.001,3994.8,3994.7,0.1248]
[1760884157963,0.001,3994.8,3994.7,2.7838]
[1760884158375,0.4478,3994.8,3994.7,2.7838]
[1760884158792,0.4478,3994.8,3994.7,2.659]
[1760884159310,0.4478,3994.8,3994.5,0.1248]
[1760884159481,0.01783734,3994.7,3994.1,1.332]
[1760884159686,2.50344223,3994.5,3994.1,1.332]
[1760884159885,2.96815839,3994.4,3994.1,1.332]
[1760884160093,2.50337861,3994.7,3994.1,1.332]
[1760884160299,2.50340861,3994.6,3994.1,1.332]
[1760884160916,2.95020861,3994.6,3994.1,1.332]
[1760884161211,0.4468,3994.6,3994.1,1.332]
[1760884161601,0.001,3994.8,3994.1,1.332]
[1760884161911,0.001,3994.8,3994.2,2.50363026]
[1760884162133,0.001,3994.8,3994.1,3.90648413]
[1760884162985,0.01883734,3994.8,3994.1,1.332]
[1760884163218,2.96889905,3994.8,3994.1,1.332]
[1760884163521,2.50336887,3994.7,3994.1,1.332]
[1760884163925,0.4468,3994.6,3994.1,1.332]
[1760884164220,0.001,3994.8,3993.7,6.32420488]
[1760884164221,0.001,3994.8,3994.5,0.0708]
[1760884164435,0.001,3994.8,3994.6,2.658]
[1760884164986,0.001,3994.8,3994.7,2.50331689]
[1760884165289,0.001,3994.8,3994.6,2.658]
[1760884165618,0.001,3994.8,3994.7,2.50331689]
[1760884166507,0.001,3994.8,3994.7,2.83371689]
[1760884167122,0.001,3994.8,3994.7,2.50331689]
[1760884167325,0.001,3994.8,3994.6,2.658]
[1760884167518,0.001,3994.8,3994.7,2.50331689]
[1760884167838,0.001,3994.8,3994.6,2.658]
[1760884168044,0.001,3994.8,3994.6,5.16137201]
[1760884168418,0.001,3994.8,3994.6,2.658]
[1760884168620,0.001,3994.8,3994.7,0.6336]
[1760884168819,0.001,3994.8,3994.7,5.19531689]
[1760884169240,0.001,3994.8,3994.7,4.56171689]
[1760884169446,0.001,3994.8,3994.7,4.68651689]
[1760884172144,0.001,3994.8,3994.7,2.62811689]
[1760884172639,0.001,3994.8,3994.7,2.50331689]
[1760884173851,0.001,3994.8,3994.6,2.658]
[1760884174055,0.2337,3994.7,3993.2,0.4592]
[1760884174232,0.6805,3994.7,3993.3,5.16119452]
[1760884174430,0.001,3994.8,3994.7,2.50331689]
[1760884174630,0.001,3994.8,3994.7,2.657]
[1760884176838,0.001,3994.8,3994.7,5.16031689]
[1760884178366,0.001,3994.8,3994.7,5.49071689]
[1760884178537,0.001,3994.8,3994.7,5.16031689]
[1760884178931,0.001,3994.8,3994.7,5.49071689]
[1760884179366,0.001,3994.8,3994.7,6.12431689]
[1760884179658,0.001,3995.2,3995.1,2.50306625]
[1760884179843,0.001,3995.2,3995.1,5.15906625]
[1760884180044,0.001,3995.2,3995.1,6.12206625]
[1760884180564,0.001,3995.2,3995.1,7.85006625]
[1760884180935,0.001,3995.2,3995.1,6.88706625]
[1760884182004,0.001,3995.2,3995.1,5.15906625]
[1760884182660,0.001,3995.2,3995.1,5.28386625]
[1760884184466,0.001,3995.2,3995.1,9.10416599]
[1760884185102,0.001,3995.2,3995.1,5.15906625]
[1760884185287,0.001,3995.2,3995.1,5.28386625]
[1760884188677,0.4323,3995.2,3995.1,2.7808]
[1760884189080,0.001,3995.2,3995.1,5.91746625]
[1760884189285,0.001,3995.2,3995.1,5.15906625]
[1760884190479,0.001,3995.2,3995.1,5.01246925]
[1760884194207,0.001,3995.2,3995.1,8.83276899]
[1760884195698,0.001,3995.2,3995.1,5.97546925]
[1760884196495,0.001,3995.2,3995.1,7.70346925]
[1760884197211,0.001,3995.2,3995.1,2.3616]
[1760884197379,0.001,3995.2,3995.1,7.84806625]
[1760884198487,0.001,3995.2,3995.1,8.09886625]
[1760884199107,0.001,3995.2,3995.1,10.73386625]
[1760884199710,0.001,3995.2,3995.1,10.48306625]
[1760884200051,0.001,3995.2,3995.1,7.84806625]
[1760884200906,0.001,3995.2,3995.1,8.09886625]
[1760884201207,0.001,3995.2,3995.1,4.86466625]
[1760884201510,0.001,3995.2,3995.1,7.84706625]
[1760884201707,0.001,3995.2,3995.1,4.23106625]
[1760884202009,0.001,3995.2,3995.1,7.21346625]
[1760884202195,0.001,3995.2,3995.1,7.84706625]
[1760884202786,0.001,3995.2,3995.1,8.09786625]
[1760884203108,0.001,3995.2,3995.1,10.73286625]
[1760884203309,0.001,3995.2,3995.1,10.48206625]
[1760884205734,1e-08,3995.7,3995.6,2.50275302]
[1760884205933,0.45040001,3995.7,3995.6,5.15475302]
[1760884206140,0.45040001,3995.7,3995.6,2.652]
[1760884206441,1e-08,3995.8,3995.7,4.23069039]
[1760884206618,1e-08,3995.8,3995.7,4.86429039]
[1760884206942,1e-08,3995.8,3995.7,8.68459013]
[1760884207830,1e-08,3995.8,3995.7,6.95659013]
[1760884208015,1e-08,3995.8,3995.7,9.60859013]
[1760884209224,1e-08,3995.8,3995.7,9.73339013]
[1760884212637,0.001,3996.0,3995.7,9.73339013]
[1760884212638,0.001,3996.0,3995.9,8.68446485]
[1760884212838,0.001,3996.0,3995.9,15.12446485]
[1760884215743,0.001,3996.0,3995.9,15.57386485]
[1760884216132,0.001,3996.0,3995.9,15.12446485]
[1760884216958,0.4435,3996.0,3995.9,12.76286485]
[1760884217160,0.4435,3996.0,3995.9,15.41286485]
[1760884217534,0.001,3996.0,3995.9,15.41286485]
[1760884217738,0.4435,3996.0,3995.9,8.97286485]
[1760884218054,0.4435,3996.0,3995.9,9.60646485]
[1760884219079,0.4435,3996.0,3995.9,8.97286485]
[1760884219245,0.4435,3996.0,3995.9,9.60646485]
[1760884219571,0.001,3996.0,3995.9,9.60646485]
[1760884220643,0.4435,3996.0,3995.9,9.60646485]
[1760884221647,0.001,3996.0,3995.9,9.60646485]
[1760884222639,0.4435,3996.0,3995.9,9.73126485]
[1760884223384,0.4435,3996.0,3995.9,7.08126485]
[1760884223538,0.001,3996.2,3996.1,3.13603987]
[1760884223741,0.001,3996.2,3995.9,3.37679973]
[1760884223959,0.001,3996.2,3996.0,2.649]
[1760884224487,0.001,3996.2,3996.0,5.15144888]
[1760884224684,0.001,3996.2,3996.1,2.50243987]
[1760884225680,0.002,3996.2,3996.0,5.15150185]
[1760884225974,0.001,3996.1,3996.0,5.15150185]
[1760884227473,0.001,3996.2,3996.1,2.50243987]
[1760884227787,0.001,3996.2,3996.1,2.649]
[1760884228092,0.002,3996.2,3996.1,2.649]
[1760884229347,0.001,3996.2,3996.1,8.5282396]
[1760884231062,0.001,3996.2,3996.1,9.1618396]
[1760884231945,0.001,3996.2,3996.1,9.8440396]
[1760884232257,0.001,3996.2,3996.1,11.5720396]
[1760884233773,0.001,3996.2,3996.1,11.6968396]
[1760884235316,0.001,3996.6,3996.5,6.51058914]
[1760884235509,0.001,3996.6,3996.5,9.15858914]
[1760884235688,0.001,3996.6,3996.5,9.28338914]
[1760884236081,0.001,3996.6,3996.5,6.00178914]
[1760884236287,0.0052,3996.6,3996.5,0.1248]
[1760884236483,0.0052,3996.6,3996.5,2.7718]
[1760884236709,0.0052,3996.6,3996.5,5.27398941]
[1760884236914,0.0052,3996.6,3996.5,2.7718]
[1760884239123,0.0052,3996.6,3996.5,2.647]
[1760884239823,0.0052,3996.6,3996.1,2.642]
[1760884240021,0.2346,3996.5,3996.4,2.50225202]
[1760884240319,0.2346,3996.5,3996.1,2.642]
[1760884240529,0.2346,3996.4,3996.1,2.642]
[1760884240696,0.2346,3996.3,3996.1,5.14443804]
[1760884240897,0.001,3996.6,3996.1,2.642]
[1760884241504,0.2346,3996.5,3996.2,2.50236998]
[1760884241708,0.2346,3996.4,3996.2,2.50236998]
[1760884241894,0.2346,3996.3,3996.2,2.50236998]
[1760884243434,0.001,3996.6,3996.3,2.50230612]
[1760884243645,0.001,3996.6,3996.5,2.50218941]
[1760884243927,0.001,3996.6,3996.5,5.14918941]
[1760884244134,0.001,3996.6,3995.8,0.002]
[1760884244430,0.001,3996.6,3996.5,2.50218941]
[1760884244639,0.001,3996.6,3996.5,5.14918941]
[1760884245694,0.2131,3996.6,3996.5,5.14918941]
[1760884246288,0.2131,3996.6,3996.5,2.50218941]
[1760884246500,0.001,3996.6,3996.5,5.14818941]
[1760884246800,0.2131,3996.6,3996.5,5.14818941]
[1760884247216,0.2131,3996.6,3995.8,0.002]
[1760884247536,0.2131,3996.6,3996.2,2.50237473]
[1760884247832,0.2131,3996.6,3995.8,0.002]
[1760884247833,0.2121,3996.5,3996.0,2.502474]
[1760884248014,0.099,3996.4,3996.1,2.646]
[1760884248209,0.099,3996.3,3996.1,2.646]
[1760884248409,0.001,3996.6,3996.1,2.646]
[1760884248636,0.099,3996.2,3995.8,0.002]
[1760884248834,0.3103,3996.1,3995.9,5.14850692]
[1760884249043,0.3103,3996.0,3995.9,5.14850692]
[1760884249223,0.001,3996.6,3995.9,2.646]
[1760884249428,0.099,3996.0,3995.9,2.646]
[1760884251254,0.099,3996.4,3995.9,2.7708]
[1760884251456,0.1248,3996.5,3996.0,2.50250047]
[1760884251641,0.099,3996.3,3996.0,2.5025025]
[1760884252147,0.1248,3996.5,3995.9,2.7708]
[1760884252356,0.099,3996.3,3995.9,2.7708]
[1760884252676,0.1248,3996.5,3995.9,2.646]
[1760884252677,0.099,3996.2,3995.9,2.646]
[1760884252845,0.1248,3996.0,3995.9,2.646]
[1760884253016,0.2238,3996.0,3995.9,2.646]
[1760884254051,0.2238,3996.0,3995.8,0.002]
[1760884254233,0.3124,3995.9,3995.8,2.647]
[1760884256514,0.2123,3995.9,3995.8,2.647]
[1760884256779,0.1248,3996.0,3995.8,2.647]
[1760884256955,0.226,3996.0,3995.8,2.647]
[1760884257147,0.3123,3995.9,3995.8,2.647]
[1760884258346,0.1248,3996.0,3995.8,2.647]
[1760884258570,0.1,3996.6,3995.9,2.50256512]
[1760884258882,0.11683734,3996.5,3995.9,0.1248]
[1760884259050,0.1248,3996.2,3996.0,2.645]
[1760884259255,0.3103,3996.1,3996.0,2.645]
[1760884260396,0.1248,3996.2,3996.0,2.645]
[1760884260563,0.1248,3996.2,3996.0,5.14750221]
[1760884260752,0.1,3996.6,3996.0,5.14750221]